fUST/lending_fUST_20240222
["ID","MTS","AMOUNT","RATE_DAILY","PERIOD"]
[314695914,1708535446443,-1276.32,0.00019693,2]
[314695916,1708535446452,-500.0,0.00019693,2]
[314695919,1708535446462,-500.0,0.00019693,2]
[314695920,1708535446471,-500.0,0.00019693,2]
[314695923,1708535446481,-500.0,0.00019693,2]
[314695924,1708535446490,-500.0,0.00019693,2]
[314695926,1708535446500,-500.0,0.00019693,2]
[314695928,1708535446509,-500.0,0.00019693,2]
[314695930,1708535446518,-1586.69,0.00019693,2]
[314695932,1708535446527,-500.0,0.00019693,2]
[314695934,1708535446535,-500.0,0.00019693,2]
[314695936,1708535446544,-210.48461062,0.00019693,2]
[314695939,1708535446555,-500.0,0.00019693,2]
[314695940,1708535446564,-2471.72,0.00019693,2]
[314695942,1708535446573,-500.0,0.00019693,2]
[314695945,1708535446583,-500.0,0.00019693,2]
[314695947,1708535446592,-500.0,0.00019693,2]
[314695948,1708535446600,-500.0,0.00019693,2]
[314695950,1708535446610,-236.5465028,0.00019693,2]
[314695952,1708535446619,-500.0,0.00019693,2]
[314695955,1708535446628,-1000.0,0.00019693,2]
[314695956,1708535446637,-500.0,0.00019693,2]
[314695958,1708535446646,-500.0,0.00019693,2]
[314695960,1708535446656,-500.0,0.00019693,2]
[314695962,1708535446665,-6913.3,0.00019693,2]
[314695964,1708535446675,-500.0,0.00019693,2]
[314695965,1708535446684,-500.0,0.00019693,2]
[314695966,1708535446693,-582.12796174,0.00019693,2]
[314695967,1708535446702,-500.0,0.00019693,2]
[314695968,1708535446711,-151.0,0.00019693,2]
[314695969,1708535446722,-500.0,0.00019693,2]
[314695970,1708535446731,-4102.17,0.00019693,2]
[314695971,1708535446740,-500.0,0.00019693,2]
[314695973,1708535446750,-271.2184854,0.00019693,2]
[314695975,1708535446760,-500.0,0.00019693,2]
[314695977,1708535446769,-500.0,0.00019693,2]
[314695979,1708535446778,-500.0,0.00019693,2]
[314695981,1708535446787,-793.54,0.00019693,2]
[314695983,1708535446797,-500.0,0.00019693,2]
[314695985,1708535446806,-1489.45,0.00019693,2]
[314695987,1708535446815,-500.0,0.00019693,2]
[314695989,1708535446824,-606.3,0.00019693,2]
[314695991,1708535446833,-500.0,0.00019693,2]
[314695993,1708535446843,-500.0,0.00019693,2]
[314695995,1708535446851,-500.0,0.00019693,2]
[314695997,1708535446861,-963.89,0.00019693,2]
[314695999,1708535446870,-500.0,0.00019693,2]
[314696001,1708535446879,-1030.37,0.00019693,2]
[314696003,1708535446888,-1390.63,0.00019693,2]
[314696005,1708535446897,-920.87,0.00019693,2]
[314696007,1708535446906,-500.0,0.00019693,2]
[314696009,1708535446916,-500.0,0.00019693,2]
[314696011,1708535446925,-377.51372435,0.00019693,2]
[314696013,1708535446936,-500.0,0.00019693,2]
[314696015,1708535446945,-500.0,0.00019693,2]
[314696017,1708535446955,-500.0,0.00019693,2]
[314696019,1708535446964,-4211.14,0.00019693,2]
[314696021,1708535446974,-500.0,0.00019693,2]
[314696023,1708535446983,-500.0,0.00019693,2]
[314696025,1708535446993,-500.31121503,0.00019693,2]
[314696027,1708535447002,-1093.11,0.00019693,2]
[314696029,1708535447011,-2749.26,0.00019693,2]
[314696031,1708535447020,-500.0,0.00019693,2]
[314696033,1708535447029,-500.0,0.00019693,2]
[314696035,1708535447039,-1978.7,0.00019693,2]
[314696037,1708535447048,-500.0,0.00019693,2]
[314696039,1708535447058,-500.0,0.00019694,2]
[314696041,1708535447068,-500.0,0.00019694,2]
[314696043,1708535447077,-500.0,0.00019694,2]
[314696045,1708535447087,-500.0,0.00019694,2]
[314696047,1708535447096,-500.0,0.00019694,2]
[314696050,1708535447106,-500.0,0.00019694,2]
[314696052,1708535447115,-500.0,0.00019694,2]
[314696054,1708535447124,-500.0,0.00019694,2]
[314696056,1708535447134,-522.4,0.00019694,2]
[314696058,1708535447142,-500.0,0.00019694,2]
[314696060,1708535447152,-500.0,0.00019694,2]
[314696061,1708535447161,-500.0,0.00019694,2]
[314696064,1708535447171,-452.66936933,0.00019694,2]
[314696066,1708535447180,-500.0,0.00019694,2]
[314696068,1708535447189,-617.42670533,0.00019694,2]
[314696070,1708535447198,-500.0,0.00019694,2]
[314696072,1708535447207,-558.03,0.00019694,2]
[314696074,1708535447216,-500.0,0.00019694,2]
[314696076,1708535447225,-842.86,0.00019694,2]
[314696078,1708535447235,-500.0,0.00019694,2]
[314696080,1708535447245,-500.0,0.00019694,2]
[314696082,1708535447255,-500.0,0.00019694,2]
[314696084,1708535447265,-500.0,0.00019694,2]
[314696086,1708535447274,-500.0,0.00019694,2]
[314696088,1708535447283,-500.0,0.00019694,2]
[314696090,1708535447292,-500.0,0.00019694,2]
[314696092,1708535447301,-500.0,0.00019694,2]
[314696094,1708535447310,-500.0,0.00019694,2]
[314696096,1708535447319,-2597.96,0.00019694,2]
[314696098,1708535447328,-500.0,0.00019694,2]
[314696100,1708535447337,-1243.09,0.00019694,2]
[314696102,1708535447346,-500.0,0.00019694,2]
[314696104,1708535447356,-2936.64,0.00019694,2]
[314696106,1708535447365,-500.0,0.00019694,2]
[314696108,1708535447374,-500.0,0.00019694,2]
[314696110,1708535447383,-500.0,0.00019694,2]
[314696112,1708535447392,-530.59920693,0.00019694,2]
[314696114,1708535447400,-500.0,0.00019694,2]
[314696116,1708535447410,-330.43871935,0.00019694,2]
[314703347,1708535523196,150.5,0.0002767,35]
[314703378,1708535523478,180.42,0.0002766,35]
[314709807,1708536639162,-608.88135017,0.00019583,2]
[314709815,1708536639226,-30.94335959,0.00019583,2]
[314709817,1708536639236,-960.67071164,0.00019584,2]
[314709819,1708536639246,-170.61214699,0.00019584,2]
[314709821,1708536639256,-158.25912794,0.00019591,2]
[314709823,1708536639266,-151.0,0.000196,2]
[314709825,1708536639278,-477.83,0.00019681,3]
[314709828,1708536639296,-207.66330367,0.00019681,3]
[314709830,1708536639314,-703.51669633,0.00019681,3]
[314709832,1708536639325,-322.64830367,0.00019681,3]
[314709867,1708536641489,-436.67169633,0.00019681,3]
[314709868,1708536641499,-559.63670171,0.00019681,3]
[314709880,1708536645151,-73.13329829,0.00019681,3]
[314709881,1708536645161,-696.61,0.00019682,3]
[314709882,1708536645170,-1006.03894291,0.0001969,2]
[314709883,1708536645179,-155.04496304,0.0001969,2]
[314709884,1708536645188,-370.37465467,0.0001969,2]
[314709885,1708536645198,-10686.02,0.0001969,2]
[314709886,1708536645207,-500.0,0.0001969,2]
[314709887,1708536645217,-649.43,0.0001969,2]
[314709888,1708536645227,-10444.46,0.0001969,2]
[314709889,1708536645236,-500.0,0.0001969,2]
[314709890,1708536645245,-948.19,0.0001969,2]
[314709891,1708536645255,-923.96,0.0001969,2]
[314709892,1708536645264,-232.08335974,0.0001969,2]
[314709893,1708536645276,-500.0,0.0001969,2]
[314709894,1708536645288,-1533.4,0.0001969,2]
[314709895,1708536645297,-1202.52,0.0001969,2]
[314709896,1708536645307,-500.0,0.0001969,2]
[314709897,1708536645319,-500.0,0.0001969,2]
[314709898,1708536645328,-500.0,0.0001969,2]
[314709899,1708536645337,-278.13278054,0.0001969,2]
[314709900,1708536645347,-500.0,0.0001969,2]
[314709901,1708536645358,-549.21,0.0001969,2]
[314709902,1708536645367,-500.0,0.00019691,2]
[314709903,1708536645376,-500.0,0.00019691,2]
[314709904,1708536645385,-500.0,0.00019691,2]
[314709905,1708536645394,-500.0,0.00019691,2]
[314709906,1708536645404,-500.0,0.00019691,2]
[314709907,1708536645413,-776.27,0.00019691,2]
[314709908,1708536645422,-500.0,0.00019691,2]
[314709909,1708536645432,-500.0,0.00019691,2]
[314709910,1708536645441,-500.0,0.00019691,2]
[314709911,1708536645451,-500.0,0.00019691,2]
[314709912,1708536645460,-500.0,0.00019691,2]
[314709913,1708536645470,-151.0,0.00019691,2]
[314709914,1708536645479,-500.0,0.00019691,2]
[314709915,1708536645489,-500.0,0.00019691,2]
[314709916,1708536645499,-500.0,0.00019691,2]
[314709917,1708536645508,-500.0,0.00019691,2]
[314709918,1708536645517,-500.0,0.00019691,2]
[314709919,1708536645526,-283.60837072,0.00019691,2]
[314709920,1708536645537,-500.0,0.00019691,2]
[314709921,1708536645546,-501.19,0.00019691,2]
[314709922,1708536645555,-611.24061641,0.00019691,2]
[314709923,1708536645564,-888.05,0.00019691,2]
[314709924,1708536645574,-669.84,0.00019691,2]
[314709925,1708536645583,-500.0,0.00019691,2]
[314709926,1708536645594,-500.0,0.00019691,2]
[314709927,1708536645604,-500.0,0.00019691,2]
[314709928,1708536645613,-551.96562463,0.00019691,2]
[314709929,1708536645623,-1131.23,0.00019691,2]
[314709930,1708536645634,-500.0,0.00019691,2]
[314709931,1708536645645,-157.75823831,0.00019691,2]
[314709932,1708536645654,-500.46440757,0.00019691,2]
[314709933,1708536645664,-500.0,0.00019691,2]
[314709934,1708536645675,-500.0,0.00019691,2]
[314709935,1708536645684,-500.0,0.00019691,2]
[314709937,1708536645693,-500.0,0.00019691,2]
[314709938,1708536645702,-500.0,0.00019691,2]
[314709940,1708536645711,-1306.59,0.00019691,2]
[314709941,1708536645722,-500.0,0.00019691,2]
[314709942,1708536645732,-500.0,0.00019691,2]
[314709943,1708536645741,-1641.48,0.00019691,2]
[314709944,1708536645750,-303.63855094,0.00019691,2]
[314709945,1708536645759,-500.0,0.00019691,2]
[314709946,1708536645769,-500.0,0.00019691,2]
[314709947,1708536645778,-500.0,0.00019691,2]
[314709948,1708536645787,-500.0,0.00019691,2]
[314709949,1708536645797,-500.0,0.00019691,2]
[314709950,1708536645806,-500.0,0.00019691,2]
[314709951,1708536645816,-500.0,0.00019691,2]
[314709952,1708536645826,-500.0,0.00019691,2]
[314709953,1708536645835,-7161.62,0.00019691,2]
[314709954,1708536645845,-500.0,0.00019691,2]
[314709955,1708536645855,-500.0,0.00019691,2]
[314709956,1708536645865,-500.0,0.00019691,2]
[314709957,1708536645875,-1051.15,0.00019691,2]
[314709958,1708536645884,-500.0,0.00019691,2]
[314709959,1708536645893,-500.0,0.00019691,2]
[314709960,1708536645903,-500.0,0.00019691,2]
[314709961,1708536645914,-4026.43,0.00019691,2]
[314709962,1708536645924,-5161.09,0.00019691,2]
[314709963,1708536645935,-500.0,0.00019691,2]
[314709964,1708536645944,-500.0,0.00019691,2]
[314709965,1708536645953,-500.0,0.00019691,2]
[314709966,1708536645962,-500.0,0.00019691,2]
[314709967,1708536645971,-649.09,0.00019691,2]
[314709968,1708536645980,-3825.46,0.00019691,2]
[314709969,1708536645989,-500.0,0.00019691,2]
[314709970,1708536645998,-500.0,0.00019691,2]
[314709971,1708536646008,-500.0,0.00019691,2]
[314709972,1708536646017,-500.0,0.00019691,2]
[314709973,1708536646026,-687.46,0.00019691,2]
[314709974,1708536646035,-500.0,0.00019691,2]
[314709975,1708536646045,-500.0,0.00019691,2]
[314709976,1708536646054,-2247.36,0.00019691,2]
[314709977,1708536646064,-500.0,0.00019691,2]
[314709978,1708536646074,-500.0,0.00019691,2]
[314709979,1708536646084,-1581.28,0.00019691,2]
[314709980,1708536646093,-500.0,0.00019691,2]
[314709981,1708536646102,-500.0,0.00019691,2]
[314709982,1708536646111,-500.0,0.00019691,2]
[314709983,1708536646120,-500.0,0.00019691,2]
[314709984,1708536646129,-500.0,0.00019691,2]
[314709985,1708536646139,-500.0,0.00019691,2]
[314709986,1708536646149,-3151.98,0.00019691,2]
[314709987,1708536646158,-208.08306404,0.00019691,2]
[314709988,1708536646168,-1430.48,0.00019691,2]
[314709989,1708536646177,-500.0,0.00019691,2]
[314709990,1708536646187,-500.0,0.00019691,2]
[314709991,1708536646196,-500.0,0.00019691,2]
[314709992,1708536646206,-500.0,0.00019691,2]
[314709993,1708536646216,-515.78063484,0.00019691,2]
[314709994,1708536646225,-500.0,0.00019691,2]
[314709995,1708536646235,-729.42,0.00019691,2]
[314709996,1708536646245,-500.0,0.00019691,2]
[314709997,1708536646254,-500.0,0.00019691,2]
[314709999,1708536646265,-500.0,0.00019691,2]
[314710001,1708536646275,-500.0,0.00019691,2]
[314710002,1708536646286,-500.0,0.00019691,2]
[314710003,1708536646296,-500.0,0.00019691,2]
[314710004,1708536646306,-500.0,0.00019691,2]
[314710005,1708536646318,-500.0,0.00019691,2]
[314710006,1708536646328,-500.0,0.00019691,2]
[314710007,1708536646338,-500.0,0.00019691,2]
[314710008,1708536646347,-500.0,0.00019691,2]
[314710009,1708536646356,-2522.35,0.00019691,2]
[314710010,1708536646365,-500.0,0.00019691,2]
[314710011,1708536646374,-500.0,0.00019691,2]
[314710012,1708536646385,-329.67349528,0.00019692,2]
[314710013,1708536646635,-500.0,0.00019692,2]
[314710014,1708536646645,-500.0,0.00019692,2]
[314710015,1708536646654,-2489.72,0.00019692,2]
[314710016,1708536646663,-1255.74,0.00019692,2]
[314710017,1708536646672,-534.78,0.00019692,2]
[314710018,1708536646682,-3052.78,0.00019692,2]
[314710019,1708536646691,-500.0,0.00019692,2]
[314710020,1708536646700,-500.0,0.00019692,2]
[314710021,1708536646709,-500.0,0.00019692,2]
[314710022,1708536646718,-151.0,0.00019692,2]
[314710023,1708536646728,-500.0,0.00019692,2]
[314710024,1708536646737,-151.0,0.00019692,2]
[314710025,1708536646746,-151.0,0.00019692,2]
[314710026,1708536646754,-500.0,0.00019692,2]
[314710027,1708536646764,-500.0,0.00019692,2]
[314710028,1708536646772,-151.255822,0.00019692,2]
[314710029,1708536646782,-151.0,0.00019692,2]
[314710030,1708536646791,-503.33303702,0.00019693,2]
[314710031,1708536646800,-500.0,0.00019693,2]
[314710032,1708536646809,-500.0,0.00019693,2]
[314710033,1708536646818,-500.0,0.00019693,2]
[314710034,1708536646827,-500.0,0.00019693,2]
[314710035,1708536646836,-500.0,0.00019693,2]
[314710036,1708536646845,-500.0,0.00019693,2]
[314710037,1708536646854,-500.0,0.00019693,2]
[314710038,1708536646863,-500.0,0.00019693,2]
[314710039,1708536646872,-500.0,0.00019693,2]
[314710040,1708536646882,-500.0,0.00019693,2]
[314710041,1708536646891,-203.99362304,0.00019693,2]
[314710042,1708536646901,-500.0,0.00019693,2]
[314710043,1708536646910,-500.0671902,0.00019693,2]
[314710044,1708536646919,-1470.6,0.00019693,2]
[314710045,1708536646930,-500.0,0.00019693,2]
[314710046,1708536646939,-500.0,0.00019693,2]
[314710047,1708536646948,-500.0,0.00019693,2]
[314710048,1708536646957,-500.0,0.00019693,2]
[314710049,1708536646966,-500.0,0.00019693,2]
[314710050,1708536646975,-151.0,0.00019693,2]
[314710051,1708536646984,-500.0,0.00019693,2]
[314710052,1708536646993,-500.0,0.00019693,2]
[314710053,1708536647002,-500.0,0.00019693,2]
[314710054,1708536647011,-500.0,0.00019693,2]
[314710055,1708536647020,-500.0,0.00019693,2]
[314710056,1708536647030,-500.0,0.00019693,2]
[314710057,1708536647040,-500.0,0.00019693,2]
[314710058,1708536647049,-537.22303569,0.00019693,2]
[314710059,1708536647058,-500.0,0.00019693,2]
[314710060,1708536647067,-500.0,0.00019693,2]
[314710061,1708536647076,-500.0,0.00019693,2]
[314710062,1708536647085,-500.0,0.00019693,2]
[314710063,1708536647095,-500.0,0.00019693,2]
[314710064,1708536647104,-500.0,0.00019693,2]
[314710065,1708536647113,-547.33410916,0.00019693,2]
[314710066,1708536647123,-500.0,0.00019693,2]
[314710067,1708536647132,-500.0,0.00019693,2]
[314710068,1708536647141,-500.0,0.00019693,2]
[314710069,1708536647150,-467.76783797,0.00019693,2]
[314710070,1708536647159,-500.0,0.00019693,2]
[314710071,1708536647168,-500.0,0.00019693,2]
[314710072,1708536647178,-500.0,0.00019693,2]
[314710073,1708536647189,-500.0,0.00019693,2]
[314710074,1708536647198,-500.0,0.00019693,2]
[314710075,1708536647208,-500.0,0.00019693,2]
[314710076,1708536647218,-500.0,0.00019693,2]
[314710077,1708536647228,-386.65847787,0.00019693,2]
[314710078,1708536647237,-670.76,0.00019693,2]
[314710079,1708536647246,-500.0,0.00019693,2]
[314710080,1708536647255,-500.0,0.00019693,2]
[314710081,1708536647265,-500.0,0.00019693,2]
[314710082,1708536647275,-500.0,0.00019693,2]
[314710083,1708536647288,-586.52020403,0.00019693,2]
[314710084,1708536647297,-500.0,0.00019693,2]
[314710085,1708536647308,-500.0,0.00019693,2]
[314710086,1708536647318,-151.0,0.00019693,2]
[314710087,1708536647327,-151.0,0.00019693,2]
[314710088,1708536647337,-151.0,0.00019693,2]
[314710089,1708536647346,-151.0,0.00019693,2]
[314710090,1708536647356,-151.0,0.00019693,2]
[314710091,1708536647366,-151.0,0.00019693,2]
[314710092,1708536647375,-500.0,0.00019866,2]
[314710093,1708536647385,-151.0,0.00019867,2]
[314710094,1708536647394,-157.715072,0.00019867,2]
[314710095,1708536647403,-151.0,0.00019867,2]
[314710096,1708536647412,-8225.6370858,0.0001996,2]
[314710097,1708536647421,-10686.02,0.00019964,2]
[314710098,1708536647430,-500.0,0.00019964,2]
[314710099,1708536647439,-649.43,0.00019964,2]
[314710100,1708536647448,-10444.46,0.00019964,2]
[314710101,1708536647457,-500.0,0.00019964,2]
[314710102,1708536647467,-948.19,0.00019964,2]
[314710103,1708536647477,-923.96,0.00019964,2]
[314710104,1708536647486,-500.0,0.00019964,2]
[314710105,1708536647495,-1533.4,0.00019964,2]
[314710106,1708536647505,-1202.52,0.00019964,2]
[314710107,1708536647514,-500.0,0.00019964,2]
[314710108,1708536647523,-151.0,0.00019964,2]
[314710109,1708536647532,-500.0,0.00019964,2]
[314710110,1708536647542,-500.0,0.00019964,2]
[314710111,1708536647551,-500.0,0.00019964,2]
[314710112,1708536647561,-549.21,0.00019964,2]
[314710113,1708536647571,-500.0,0.00019965,2]
[314710114,1708536647581,-500.0,0.00019965,2]
[314710115,1708536647590,-776.27,0.00019965,2]
[314710116,1708536647600,-500.0,0.00019965,2]
[314710117,1708536647609,-500.0,0.00019965,2]
[314710118,1708536647618,-151.0,0.00019965,2]
[314710119,1708536647628,-500.0,0.00019965,2]
[314710120,1708536647637,-500.0,0.00019965,2]
[314710121,1708536647646,-253.47848265,0.00019965,2]
[314710122,1708536647655,-409.64295234,0.00019965,2]
[314710123,1708536647665,-500.0,0.00019965,2]
[314710124,1708536647674,-501.19,0.00019965,2]
[314710125,1708536647683,-888.05,0.00019965,2]
[314710126,1708536647694,-669.84,0.00019965,2]
[314710127,1708536647703,-500.0,0.00019965,2]
[314710128,1708536647712,-500.0,0.00019965,2]
[314710129,1708536647721,-500.0,0.00019965,2]
[314710130,1708536647730,-1131.23,0.00019965,2]
[314710131,1708536647739,-500.0,0.00019965,2]
[314710132,1708536647748,-500.0,0.00019965,2]
[314710133,1708536647757,-500.0,0.00019965,2]
[314710134,1708536647768,-500.0,0.00019965,2]
[314710135,1708536647777,-151.0,0.00019965,2]
[314710136,1708536647789,-151.0,0.00019965,2]
[314710137,1708536647799,-151.0,0.00019965,2]
[314710138,1708536647810,-500.0,0.00019965,2]
[314710139,1708536647820,-1306.59,0.00019965,2]
[314710140,1708536647830,-500.0,0.00019965,2]
[314710141,1708536647840,-500.0,0.00019965,2]
[314710142,1708536647852,-1641.48,0.00019965,2]
[314710143,1708536647862,-500.0,0.00019965,2]
[314710144,1708536647872,-581.88330222,0.00019965,2]
[314710145,1708536647881,-500.0,0.00019965,2]
[314710146,1708536647891,-500.0,0.00019965,2]
[314710147,1708536647901,-500.0,0.00019965,2]
[314710148,1708536647911,-500.0,0.00019965,2]
[314710149,1708536647920,-7161.62,0.00019965,2]
[314710150,1708536647929,-500.0,0.00019965,2]
[314710151,1708536647939,-179.49419892,0.00019965,2]
[314710152,1708536647949,-500.0,0.00019965,2]
[314710153,1708536647958,-1051.15,0.00019965,2]
[314710154,1708536647968,-500.0,0.00019965,2]
[314710155,1708536647977,-4026.43,0.00019965,2]
[314710156,1708536647986,-5161.09,0.00019965,2]
[314710157,1708536647995,-500.0,0.00019965,2]
[314710158,1708536648004,-500.0,0.00019965,2]
[314710159,1708536648013,-500.0,0.00019965,2]
[314710160,1708536648022,-649.09,0.00019965,2]
[314710161,1708536648031,-3825.46,0.00019965,2]
[314710162,1708536648041,-500.0,0.00019965,2]
[314710163,1708536648050,-500.0,0.00019965,2]
[314710164,1708536648059,-500.0,0.00019965,2]
[314710165,1708536648069,-687.46,0.00019965,2]
[314710166,1708536648080,-500.0,0.00019965,2]
[314710167,1708536648089,-500.0,0.00019965,2]
[314710168,1708536648098,-2247.36,0.00019965,2]
[314710169,1708536648107,-500.0,0.00019965,2]
[314710170,1708536648117,-500.0,0.00019965,2]
[314710171,1708536648127,-1581.28,0.00019965,2]
[314710172,1708536648136,-500.0,0.00019965,2]
[314710173,1708536648146,-500.0,0.00019965,2]
[314710174,1708536648156,-500.0,0.00019965,2]
[314710175,1708536648167,-500.0,0.00019965,2]
[314710176,1708536648177,-3151.98,0.00019965,2]
[314710177,1708536648186,-1430.48,0.00019965,2]
[314710178,1708536648197,-500.0,0.00019965,2]
[314710179,1708536648206,-500.0,0.00019965,2]
[314710180,1708536648215,-500.0,0.00019965,2]
[314710181,1708536648225,-500.0,0.00019965,2]
[314710182,1708536648236,-729.42,0.00019965,2]
[314710183,1708536648246,-500.0,0.00019965,2]
[314710184,1708536648256,-500.0,0.00019965,2]
[314710185,1708536648265,-239.43337024,0.00019965,2]
[314710186,1708536648274,-500.0,0.00019965,2]
[314710187,1708536648287,-500.0,0.00019965,2]
[314710188,1708536648295,-500.0,0.00019965,2]
[314710189,1708536648305,-500.0,0.00019965,2]
[314710190,1708536648317,-500.0,0.00019965,2]
[314710191,1708536648327,-500.0,0.00019965,2]
[314710192,1708536648335,-500.0,0.00019965,2]
[314710193,1708536648345,-2522.35,0.00019965,2]
[314710194,1708536648354,-500.0,0.00019965,2]
[314710195,1708536648363,-500.0,0.00019965,2]
[314710196,1708536648372,-500.0,0.00019966,2]
[314710197,1708536648382,-500.0,0.00019966,2]
[314710198,1708536648391,-2489.72,0.00019966,2]
[314710199,1708536648399,-1255.74,0.00019966,2]
[314710200,1708536648408,-534.78,0.00019966,2]
[314710201,1708536648417,-3052.78,0.00019966,2]
[314710202,1708536648427,-500.0,0.00019966,2]
[314710203,1708536648438,-500.0,0.00019966,2]
[314710204,1708536648448,-500.0,0.00019966,2]
[314710205,1708536648459,-306.28915104,0.00019966,2]
[314710206,1708536648470,-151.0,0.00019966,2]
[314710207,1708536648480,-500.0,0.00019966,2]
[314710208,1708536648490,-500.0,0.00019966,2]
[314710209,1708536648499,-500.0,0.00019967,2]
[314710210,1708536648509,-500.0,0.00019967,2]
[314710211,1708536648518,-500.0,0.00019967,2]
[314710212,1708536648527,-500.0,0.00019967,2]
[314710213,1708536648537,-500.0,0.00019967,2]
[314710214,1708536648547,-500.0,0.00019967,2]
[314710215,1708536648557,-1470.6,0.00019967,2]
[314710216,1708536648566,-561.38132343,0.00019967,2]
[314710217,1708536648575,-500.0,0.00019967,2]
[314710218,1708536648584,-500.0,0.00019967,2]
[314710219,1708536648594,-222.14494732,0.00019967,2]
[314710220,1708536648604,-500.0,0.00019967,2]
[314710221,1708536648613,-500.0,0.00019967,2]
[314710222,1708536648622,-500.0,0.00019967,2]
[314710223,1708536648631,-500.0,0.00019967,2]
[314710224,1708536648640,-500.0,0.00019967,2]
[314710225,1708536648651,-500.0,0.00019967,2]
[314710226,1708536648660,-500.0,0.00019967,2]
[314710227,1708536648669,-500.0,0.00019967,2]
[314710228,1708536648678,-500.0,0.00019967,2]
[314710229,1708536648686,-500.0,0.00019967,2]
[314710230,1708536648695,-500.0,0.00019967,2]
[314710231,1708536648705,-500.0,0.00019967,2]
[314710232,1708536648714,-500.0,0.00019967,2]
[314710233,1708536648724,-500.0,0.00019967,2]
[314710234,1708536648734,-670.76,0.00019967,2]
[314710235,1708536648743,-500.0,0.00019967,2]
[314710236,1708536648753,-500.0,0.00019967,2]
[314710237,1708536648762,-500.0,0.00019967,2]
[314710238,1708536648772,-500.0,0.00019967,2]
[314710239,1708536648783,-237.460252,0.00019967,2]
[314710240,1708536648792,-16404.38345706,0.0002,2]
[314710241,1708536648801,-155.11323266,0.00020099,2]
[314710242,1708536648811,-200.4553765,0.000201,2]
[314710243,1708536648820,-200.4553765,0.000201,2]
[314710244,1708536648829,-155.0617264,0.000201,2]
[314710245,1708536648838,-301.7645187,0.000201,2]
[314710246,1708536648848,-154.9697624,0.000201,2]
[314710247,1708536648857,-240.2863309,0.000201,2]
[314710248,1708536648866,-153.0,0.000201,2]
[314710249,1708536648876,-295.0,0.000201,2]
[314710250,1708536648885,-153.0,0.000201,2]
[314710251,1708536648894,-153.0,0.000201,2]
[314710252,1708536648904,-153.0,0.000201,2]
[314710253,1708536648913,-153.0,0.000201,2]
[314710254,1708536648923,-153.0,0.000201,2]
[314710255,1708536648935,-153.0,0.000201,2]
[314710256,1708536648946,-153.0,0.000201,2]
[314710257,1708536648958,-153.0,0.000201,2]
[314710258,1708536648967,-153.0,0.000201,2]
[314710259,1708536648977,-153.0,0.000201,2]
[314710260,1708536648988,-153.0,0.000201,2]
[314710261,1708536648998,-153.0,0.000201,2]
[314710262,1708536649009,-153.0,0.000201,2]
[314710263,1708536649018,-153.0,0.000201,2]
[314710264,1708536649027,-153.0,0.000201,2]